bitfinex/quotes_BTCUSD_20250204
["timestamp","ask_amount","ask_price","bid_price","bid_amount"]
[1738637172385,0.55520692,101050.0,101040.0,0.0001068]
[1738637173457,0.59695917,101050.0,101040.0,0.0001068]
[1738637174645,0.5552542,101050.0,101040.0,0.0001068]
[1738637175470,0.64556582,101050.0,101040.0,0.0001068]
[1738637175894,0.5552542,101050.0,101040.0,0.0001068]
[1738637179339,0.56540967,101050.0,101040.0,0.0001068]
[1738637180639,0.43402881,101050.0,101040.0,0.0001068]
[1738637180843,0.18164375,101050.0,101040.0,0.0497068]
[1738637181321,4.728e-05,101050.0,101040.0,0.2747628]
[1738637182990,4.728e-05,101050.0,101040.0,0.37714786]
[1738637185581,4.728e-05,101050.0,101040.0,0.38691882]
[1738637193096,4.728e-05,101050.0,101040.0,0.53691882]
[1738637194112,4.728e-05,101050.0,101040.0,0.56762042]
[1738637194546,0.31781388,101060.0,101050.0,0.148441]
[1738637194765,0.31781388,101060.0,101050.0,0.37640035]
[1738637198647,0.31781388,101060.0,101050.0,0.25130035]
[1738637199086,1.5,101060.0,101050.0,0.44921835]
[1738637200056,1.5,101060.0,101050.0,0.49869535]
[1738637202251,1.648426,101060.0,101050.0,0.10285935]
[1738637202503,1.648426,101060.0,101050.0,0.00047429]
[1738637204969,0.62292028,101070.0,101050.0,0.34683229]
[1738637205174,0.62292028,101070.0,101050.0,0.54474929]
[1738637205375,2.12292028,101070.0,101050.0,0.54474929]
[1738637205555,2.12292028,101070.0,101050.0,0.34683229]
[1738637206562,2.12292028,101070.0,101050.0,0.54474929]
[1738637207874,1.92502928,101070.0,101050.0,0.64713335]
[1738637208076,0.00022428,101070.0,101060.0,0.25081106]
[1738637210845,0.32192428,101070.0,101060.0,0.25081106]
[1738637213355,0.32192428,101070.0,101060.0,0.26086246]
[1738637216146,0.32192428,101070.0,101060.0,0.41086246]
[1738637216277,0.32192428,101070.0,101060.0,0.56847105]
[1738637216278,0.00022428,101070.0,101060.0,0.56847105]
[1738637220447,0.00022428,101070.0,101060.0,0.60802905]
[1738637221107,0.00022428,101070.0,101060.0,0.29167105]
[1738637221929,0.00022428,101070.0,101060.0,0.44167105]
[1738637222411,0.00022428,101070.0,101060.0,0.29167105]
[1738637222622,0.32192428,101070.0,101060.0,0.26086246]
[1738637226275,0.32192428,101070.0,101060.0,0.29164447]
[1738637230441,0.32192428,101070.0,101060.0,0.48924447]
[1738637230649,0.32192428,101070.0,101060.0,0.57124447]
[1738637231843,2.8e-07,101070.0,101060.0,0.61424447]
[1738637233649,0.31262145,101100.0,101060.0,0.38381847]
[1738637233855,0.31262145,101100.0,101090.0,0.148382]
[1738637234085,0.31262145,101100.0,101090.0,0.25208256]
[1738637234306,0.31262145,101100.0,101090.0,0.25076706]
[1738637236866,0.31262145,101100.0,101090.0,0.40076706]
[1738637237776,0.43866815,101120.0,101110.0,0.148353]
[1738637237940,0.43866815,101120.0,101110.0,0.25073806]
[1738637238832,0.1260467,101120.0,101110.0,0.25073806]
[1738637239029,0.0001467,101120.0,101110.0,0.25073806]
[1738637240887,0.0001467,101120.0,101110.0,0.40073806]
[1738637241104,0.0001467,101120.0,101110.0,0.4165771]
[1738637241254,0.0001467,101120.0,101110.0,0.43136745]
[1738637241852,0.0001467,101120.0,101110.0,0.40073806]
[1738637242372,0.0001467,101120.0,101110.0,0.41083486]
[1738637242850,0.0001467,101120.0,101110.0,0.43926712]
[1738637242999,0.0001467,101120.0,101110.0,0.45510616]
[1738637243204,0.0001467,101120.0,101110.0,0.46989651]
[1738637243404,0.0001467,101120.0,101110.0,0.54879651]
[1738637244441,0.0001467,101120.0,101110.0,0.57942267]
[1738637244846,0.0001467,101120.0,101110.0,0.52036102]
[1738637245059,0.0001467,101120.0,101110.0,0.41083486]
[1738637245267,0.0001467,101120.0,101110.0,0.42999753]
[1738637247751,0.0001467,101120.0,101110.0,0.41083486]
[1738637252685,0.0001467,101120.0,101110.0,0.44144568]
[1738637253055,0.0001467,101120.0,101110.0,0.41083486]
[1738637258668,0.0001467,101120.0,101110.0,0.45923486]
[1738637258824,0.0001467,101120.0,101110.0,0.48985734]
[1738637261080,7e-07,101120.0,101110.0,0.53285734]
[1738637261230,7e-07,101120.0,101110.0,0.61215734]
[1738637261854,7e-07,101120.0,101110.0,0.64278673]
[1738637262186,2.8e-07,101140.0,101130.0,0.148323]
[1738637262426,6.1e-07,101140.0,101130.0,0.46327473]
[1738637262602,6.1e-07,101140.0,101130.0,0.57687516]
[1738637262809,6.1e-07,101140.0,101130.0,0.65617516]
[1738637266700,6.1e-07,101140.0,101130.0,0.69570116]
[1738637267328,6.1e-07,101140.0,101130.0,1.01740116]
[1738637267329,0.00010731,101140.0,101130.0,1.01740116]
[1738637267533,3.1e-07,101140.0,101130.0,1.01740116]
[1738637270769,3.1e-07,101140.0,101130.0,1.02742061]
[1738637271603,3.1e-07,101140.0,101130.0,1.01742061]
[1738637271806,3.1e-07,101140.0,101130.0,1.02742061]
[1738637272011,3.1e-07,101140.0,101130.0,1.00742061]
[1738637272352,3.1e-07,101140.0,101130.0,0.93812061]
[1738637272548,3.1e-07,101140.0,101130.0,0.85952061]
[1738637272764,3.1e-07,101140.0,101130.0,0.48087599]
[1738637272983,3.1e-07,101140.0,101130.0,0.55064829]
[1738637273417,3.1e-07,101140.0,101130.0,0.48087599]
[1738637273928,3.1e-07,101140.0,101130.0,0.49087599]
[1738637274150,3.1e-07,101140.0,101130.0,0.45134999]
[1738637275312,3.1e-07,101140.0,101130.0,0.44134999]
[1738637278873,3.1e-07,101140.0,101130.0,0.46434999]
[1738637279257,3.1e-07,101140.0,101130.0,0.56811408]
[1738637279748,3.1e-07,101140.0,101130.0,0.54157406]
[1738637280176,3.1e-07,101140.0,101130.0,0.60570176]
[1738637280311,3.1e-07,101140.0,101130.0,0.98660176]
[1738637281788,0.0001068,101160.0,101150.0,0.181294]
[1738637281943,0.0001068,101160.0,101150.0,0.54611596]
[1738637282146,0.0001068,101160.0,101150.0,0.59892924]
[1738637282987,0.0001068,101160.0,101150.0,0.57238922]
[1738637283818,0.0001068,101160.0,101150.0,0.46430154]
[1738637285210,0.0001068,101160.0,101150.0,0.78600154]
[1738637285408,0.0001068,101160.0,101150.0,0.77600154]
[1738637285652,0.0001068,101160.0,101150.0,0.76300154]
[1738637285788,0.0816068,101160.0,101150.0,0.75300154]
[1738637288264,0.0816068,101160.0,101150.0,0.76295276]
[1738637289972,0.08151738,101160.0,101150.0,0.76295276]
[1738637290748,0.12781738,101160.0,101150.0,0.76295276]
[1738637291208,0.12781738,101160.0,101150.0,0.41063028]
[1738637291618,0.12781738,101160.0,101150.0,0.44135289]
[1738637291975,0.12781738,101160.0,101150.0,0.41063028]
[1738637292604,0.12781738,101160.0,101150.0,0.44137154]
[1738637293731,0.12781738,101160.0,101150.0,0.43142032]
[1738637294308,0.44951738,101160.0,101150.0,0.28142032]
[1738637294507,0.44951738,101160.0,101150.0,0.43142032]
[1738637297006,0.59779638,101160.0,101150.0,0.28312632]
[1738637297165,0.27609638,101160.0,101150.0,0.10238506]
[1738637297591,0.1236,101150.0,101140.0,0.34625807]
[1738637297726,0.1236,101150.0,101140.0,0.28169833]
[1738637297928,0.1236,101150.0,101140.0,0.40091813]
[1738637302914,0.4453,101150.0,101140.0,0.40091813]
[1738637304176,0.4453,101150.0,101140.0,0.43165807]
[1738637306303,0.3217,101150.0,101140.0,0.43165807]
[1738637309049,0.12501738,101160.0,101150.0,0.148294]
[1738637309180,0.12501738,101160.0,101150.0,0.281419]
[1738637309527,0.12501738,101160.0,101150.0,0.24071906]
[1738637312768,0.12501738,101160.0,101150.0,0.39071906]
[1738637313426,0.12501738,101160.0,101150.0,0.25238506]
[1738637313631,0.27329638,101160.0,101150.0,0.25238506]
[1738637314167,0.1303,101150.0,101140.0,0.14853307]
[1738637314369,0.1303,101150.0,101140.0,0.25091813]
[1738637314572,0.1303,101150.0,101140.0,0.40091813]
[1738637314897,0.452,101150.0,101140.0,0.40091813]
[1738637315494,0.278594,101150.0,101140.0,0.25260913]
[1738637316038,0.278594,101150.0,101140.0,0.00022407]
[1738637316657,1.778594,101150.0,101140.0,0.00022407]
[1738637318487,0.278594,101150.0,101140.0,0.00022407]
[1738637335918,0.1303,101150.0,101140.0,0.14853307]
[1738637336800,0.1303,101150.0,101140.0,0.25091813]
[1738637337756,0.1304067,101150.0,101140.0,0.25091813]
[1738637345663,0.1304067,101150.0,101140.0,0.00022407]
[1738637345842,0.43308156,101150.0,101140.0,0.00022407]
[1738637346283,0.3017007,101150.0,101140.0,0.00022407]
[1738637346708,0.43308156,101150.0,101140.0,0.00022407]
[1738637346839,0.58308156,101150.0,101140.0,0.00022407]
[1738637347610,0.68557628,101150.0,101140.0,0.00022407]
[1738637347856,0.79796134,101150.0,101140.0,0.00022407]
[1738637348057,0.78796134,101150.0,101140.0,0.00022407]
[1738637348462,0.89196134,101150.0,101140.0,0.00022407]
[1738637348663,0.78796134,101150.0,101140.0,0.00022407]
[1738637349753,0.79772767,101150.0,101140.0,0.00022407]
[1738637349924,0.80772767,101150.0,101140.0,0.00022407]
[1738637350135,0.69523295,101150.0,101140.0,0.00022407]
[1738637350363,0.70523295,101150.0,101140.0,0.00022407]
[1738637352800,0.7149971,101150.0,101140.0,0.00022407]
[1738637353866,0.70523077,101150.0,101140.0,0.00022407]
[1738637357100,0.71501988,101150.0,101140.0,0.00022407]
[1738637357322,0.8175146,101150.0,101140.0,0.00022407]
[1738637359159,0.8175146,101150.0,101140.0,7e-08]
[1738637359352,0.93889546,101150.0,101140.0,7e-08]
[1738637360115,0.307509,101140.0,101130.0,0.00018414]
[1738637360317,0.67985578,101140.0,101130.0,0.00018414]
[1738637360523,0.9816205,101140.0,101130.0,1.4e-07]
[1738637360822,0.9816205,101140.0,101110.0,6.94e-05]
[1738637360823,0.313638,101120.0,101110.0,6.94e-05]
[1738637361024,0.54740392,101120.0,101110.0,0.00021173]
[1738637361492,0.55718311,101120.0,101110.0,0.00021173]
[1738637361677,0.65967783,101120.0,101110.0,0.00021173]
[1738637362715,0.55718311,101120.0,101110.0,0.00021173]
[1738637363556,0.54718311,101120.0,101110.0,0.00021173]
[1738637363777,0.53740392,101120.0,101110.0,0.00021173]
[1738637363947,0.55740392,101120.0,101110.0,0.00021173]
[1738637364450,0.55460392,101120.0,101110.0,0.00021173]
[1738637364652,0.66709864,101120.0,101110.0,0.00021173]
[1738637364886,0.55460392,101120.0,101110.0,0.00021173]
[1738637365256,0.56460392,101120.0,101110.0,0.00021173]
[1738637366651,0.55460392,101120.0,101110.0,0.00021173]
[1738637367054,0.56446253,101120.0,101110.0,0.00021173]
[1738637368826,0.57446253,101120.0,101110.0,0.00021173]
[1738637369712,0.56446253,101120.0,101110.0,0.00021173]
[1738637369934,0.57446253,101120.0,101110.0,0.00021173]
[1738637371841,0.56446253,101120.0,101110.0,0.00021173]
[1738637372308,0.56446253,101120.0,101110.0,0.0004358]
[1738637373402,0.66695725,101120.0,101110.0,0.0004358]
[1738637374622,0.65695725,101120.0,101110.0,0.0004358]
[1738637374806,0.66695725,101120.0,101110.0,0.0004358]
[1738637375146,0.56446253,101120.0,101110.0,0.0004358]
[1738637376091,0.60381607,101120.0,101110.0,0.0004358]
[1738637376447,0.59381607,101120.0,101110.0,0.0004358]
[1738637376664,0.60381607,101120.0,101110.0,0.0004358]
[1738637377954,0.59381607,101120.0,101110.0,0.0004358]
[1738637378184,0.60381607,101120.0,101110.0,0.0004358]
[1738637379169,0.57657607,101120.0,101110.0,0.0004358]
[1738637379384,0.1924497,101120.0,101110.0,0.0004358]
[1738637380012,0.2154497,101120.0,101110.0,0.0004358]
[1738637380998,0.18613616,101120.0,101110.0,0.0004358]
[1738637381195,0.18119661,101120.0,101110.0,0.0004358]
[1738637384186,0.148338,101120.0,101110.0,0.10282086]
[1738637384402,0.17769942,101130.0,101120.0,0.148338]
[1738637384606,0.02937042,101130.0,101120.0,0.226538]
[1738637384917,0.148323,101130.0,101120.0,0.226538]
[1738637385119,0.1484297,101130.0,101120.0,0.226538]
[1738637385440,0.0001067,101130.0,101120.0,0.226538]
[1738637385636,0.0001067,101130.0,101120.0,0.32892306]
[1738637385858,0.0001067,101130.0,101120.0,0.37592306]
[1738637388809,0.0001067,101130.0,101120.0,0.52592306]
[1738637396984,0.0001067,101130.0,101120.0,0.44772306]
[1738637399120,0.0001067,101130.0,101120.0,0.53102306]
[1738637400509,0.0001067,101130.0,101120.0,0.40072306]
[1738637400909,0.1484297,101130.0,101120.0,0.40072306]
[1738637401109,0.0001067,101130.0,101120.0,0.40072306]
[1738637403493,0.0001067,101130.0,101120.0,0.44800406]
[1738637405737,0.1484297,101130.0,101120.0,0.24920406]
[1738637405940,0.2265297,101130.0,101120.0,0.24920406]
[1738637406096,0.0782067,101130.0,101120.0,0.24920406]
[1738637406302,0.0001067,101130.0,101120.0,0.24920406]
[1738637408291,0.0001067,101130.0,101120.0,0.39920406]
[1738637408442,0.0001067,101130.0,101120.0,0.47512813]
[1738637408627,0.0001067,101130.0,101120.0,0.52492813]
[1738637408970,0.0001067,101130.0,101120.0,0.55559592]
[1738637409919,0.0001067,101130.0,101120.0,0.52492813]
[1738637410339,0.0001067,101130.0,101120.0,0.39942813]
[1738637410952,1.5001067,101130.0,101120.0,0.39942813]
[1738637411389,1.5001067,101130.0,101120.0,0.24942813]
[1738637411599,0.0001067,101130.0,101120.0,0.24942813]
[1738637414551,0.0101067,101130.0,101120.0,0.10238506]
[1738637415292,0.0201067,101130.0,101120.0,0.10238506]
[1738637415589,0.0101067,101130.0,101120.0,0.10238506]
[1738637415772,0.0001067,101130.0,101120.0,0.10238506]
[1738637415977,0.3218067,101130.0,101120.0,0.10238506]
[1738637416933,0.02,101110.0,101090.0,0.346197]
[1738637417119,0.02,101110.0,101100.0,0.25075206]
[1738637417319,0.01,101110.0,101100.0,0.25075206]
[1738637418333,0.02,101110.0,101100.0,0.25075206]
[1738637418924,0.02,101110.0,101100.0,0.10238506]
[1738637419120,0.02,101100.0,101080.0,0.428445]
[1738637419418,0.02,101100.0,101090.0,0.25076706]
[1738637421362,0.3317,101110.0,101100.0,0.148367]
[1738637421573,0.3317,101110.0,101100.0,0.25075206]
[1738637422505,0.3417,101110.0,101100.0,0.25075206]
[1738637422690,0.3317,101110.0,101100.0,0.25075206]
[1738637423086,0.3317,101110.0,101100.0,0.10238506]
[1738637423632,0.3317,101110.0,101100.0,0.25075206]
[1738637427267,0.3317,101110.0,101100.0,0.26052518]
[1738637430043,0.3417,101110.0,101100.0,0.26052518]
[1738637430240,0.3317,101110.0,101100.0,0.26052518]
[1738637432233,0.4136,101110.0,101100.0,0.11215818]
[1738637432444,0.4036,101110.0,101100.0,0.11215818]
[1738637432790,1.9036,101110.0,101100.0,0.11215818]
[1738637433558,0.4036,101110.0,101100.0,0.11215818]
[1738637434502,0.1502,101100.0,101090.0,0.15850618]
[1738637434620,0.1502,101100.0,101090.0,0.25076706]
[1738637436671,0.4719,101100.0,101090.0,0.25076706]
[1738637437020,0.4719,101100.0,101090.0,0.10238506]
[1738637437529,0.4719,101100.0,101090.0,0.26090857]
[1738637438932,0.4719,101100.0,101090.0,0.11252657]
[1738637439365,0.4719,101100.0,101090.0,0.26090857]
[1738637441762,0.3417,101100.0,101090.0,0.26090857]
[1738637445494,0.34165162,101100.0,101090.0,0.26090857]
[1738637446388,0.33165162,101100.0,101090.0,0.26090857]
[1738637446721,0.34165162,101100.0,101090.0,0.26090857]
[1738637449549,0.60711862,101100.0,101090.0,0.10238506]
[1738637449776,0.60711862,101100.0,101080.0,0.0101068]
[1738637449777,0.237082,101090.0,101080.0,0.0101068]
[1738637449893,0.285482,101090.0,101080.0,0.0101068]
[1738637450645,1.6371,101090.0,101080.0,0.0101068]
[1738637451013,0.1371,101090.0,101080.0,0.00058109]
[1738637451560,1.6371,101090.0,101080.0,0.00058109]
[1738637452134,0.1371,101090.0,101080.0,0.00058109]
[1738637452537,0.3435966,101090.0,101080.0,0.00058109]
[1738637452745,0.275482,101090.0,101080.0,0.00058109]
[1738637453642,0.1271,101090.0,101080.0,0.00058109]
[1738637453863,0.275482,101090.0,101080.0,0.00058109]
[1738637454070,0.1271,101090.0,101080.0,0.00058109]
[1738637454423,0.597182,101090.0,101080.0,0.00058109]
[1738637456268,0.64905458,101090.0,101080.0,0.00058109]
[1738637456671,0.597182,101090.0,101080.0,0.00058109]
[1738637462405,0.85394792,101090.0,101080.0,0.00058109]
[1738637462618,1.00394792,101090.0,101080.0,0.00058109]
[1738637466536,0.68224792,101090.0,101080.0,0.00058109]
[1738637471159,0.55086706,101090.0,101080.0,0.00058109]
[1738637471372,0.275482,101090.0,101080.0,0.00058109]
[1738637485474,0.07962428,101100.0,101080.0,0.25136315]
[1738637485646,0.22799328,101100.0,101080.0,0.25136315]
[1738637485855,0.07962428,101100.0,101080.0,0.44922115]
[1738637486059,0.22799528,101100.0,101080.0,0.44922115]
[1738637486418,0.42582028,101100.0,101080.0,0.25136315]
[1738637486676,0.62364828,101100.0,101080.0,0.25136315]
[1738637486975,0.42582028,101100.0,101080.0,0.25136315]
[1738637487737,0.42582028,101100.0,101080.0,0.44922515]
[1738637488175,1.92582028,101100.0,101080.0,0.44922515]
[1738637488704,0.01,101090.0,101080.0,0.25136315]
[1738637488838,1.72799528,101100.0,101080.0,0.44921815]
[1738637489078,1.92582028,101100.0,101080.0,0.25136315]
[1738637489565,2.12365028,101100.0,101080.0,0.10296615]
[1738637489763,0.0479,101090.0,101080.0,0.10296615]
[1738637490655,0.0479,101090.0,101080.0,0.25136315]
[1738637491401,0.0479,101090.0,101080.0,0.10296615]
[1738637494264,0.196282,101090.0,101080.0,0.10296615]
[1738637494562,0.196282,101090.0,101080.0,0.00058109]
[1738637494761,0.271982,101090.0,101080.0,0.00058109]
[1738637494979,0.1236,101090.0,101080.0,0.00058109]
[1738637497406,0.271982,101090.0,101080.0,0.00058109]
[1738637498189,0.1236,101090.0,101080.0,0.00058109]
[1738637498596,0.12348137,101090.0,101080.0,0.00058109]
[1738637501394,0.0757,101090.0,101080.0,0.25136315]
[1738637501637,0.12432428,101100.0,101080.0,0.25136315]
[1738637501803,0.12432428,101100.0,101080.0,0.44921715]
[1738637502028,0.3217,101090.0,101080.0,0.25136315]
[1738637503508,0.3217,101090.0,101080.0,0.10296615]
[1738637504093,0.552082,101090.0,101080.0,0.00058109]
[1738637505067,0.4037,101090.0,101080.0,0.00058109]
[1738637506256,0.4037,101090.0,101080.0,0.10296615]
[1738637506409,0.3217,101090.0,101080.0,0.25136315]
[1738637509108,0.4035,101090.0,101080.0,0.25136315]
[1738637509326,0.551882,101090.0,101080.0,0.00058109]
[1738637509667,0.4035,101090.0,101080.0,0.00058109]
[1738637511718,0.40372428,101090.0,101080.0,0.00058109]
[1738637513226,0.55210628,101090.0,101080.0,0.00058109]
[1738637513428,0.40372428,101090.0,101080.0,0.00058109]
[1738637513811,0.40372428,101090.0,101080.0,0.10296615]
[1738637514018,0.55210628,101090.0,101080.0,0.10296615]
[1738637514471,0.40372428,101090.0,101080.0,0.10296615]
[1738637514673,0.55210628,101090.0,101080.0,0.10296615]
[1738637515112,0.40372428,101090.0,101080.0,0.10296615]
[1738637515324,0.55210628,101090.0,101080.0,0.00058109]
[1738637517183,0.59780628,101090.0,101080.0,0.00058109]
[1738637517958,0.70699943,101090.0,101080.0,0.00058109]
[1738637518084,0.63768449,101090.0,101080.0,0.00058109]
[1738637518293,0.73387764,101090.0,101080.0,0.00058109]
[1738637518514,0.65768449,101090.0,101080.0,0.00058109]
[1738637518737,0.74387764,101090.0,101080.0,0.00058109]
[1738637518947,0.84637236,101090.0,101080.0,0.00058109]
[1738637519753,0.6698201,101090.0,101080.0,0.00058109]
[1738637520330,0.75601325,101090.0,101080.0,0.00058109]
[1738637520749,0.71507311,101090.0,101080.0,0.00058109]
[1738637523757,0.70507311,101090.0,101080.0,0.00058109]
[1738637523989,0.71507311,101090.0,101080.0,0.00058109]
[1738637524406,0.81756783,101090.0,101080.0,0.00058109]
[1738637525564,0.71507311,101090.0,101080.0,0.00058109]
[1738637529248,0.70507311,101090.0,101080.0,0.00058109]
[1738637530717,0.69507311,101090.0,101080.0,0.00058109]
[1738637533653,0.70507311,101090.0,101080.0,0.00058109]
[1738637533852,0.69507311,101090.0,101080.0,0.00058109]
[1738637534989,0.80756783,101090.0,101080.0,0.00058109]
[1738637535228,0.81756783,101090.0,101080.0,0.00058109]
[1738637535431,0.80756783,101090.0,101080.0,0.00058109]
[1738637535985,0.80756783,101090.0,101080.0,9e-08]
[1738637539987,0.70507311,101090.0,101080.0,9e-08]
[1738637540762,0.74615145,101090.0,101080.0,9e-08]
[1738637544131,0.90942145,101090.0,101080.0,9e-08]
[1738637546094,0.90942145,101090.0,101080.0,0.00010689]
[1738637551200,0.8231592,101090.0,101080.0,0.00010689]
[1738637551432,0.90942145,101090.0,101080.0,0.00010689]
[1738637551589,0.92558846,101090.0,101080.0,0.00010689]
[1738637552254,0.93558846,101090.0,101080.0,0.00010689]
[1738637553470,0.91942145,101090.0,101080.0,0.00010689]
[1738637553861,0.92920064,101090.0,101080.0,0.00010689]
[1738637557202,0.84293839,101090.0,101080.0,0.00010689]
[1738637557775,0.92920064,101090.0,101080.0,0.00010689]
[1738637558990,0.91920064,101090.0,101080.0,0.00010689]
[1738637559224,0.92920064,101090.0,101080.0,0.00010689]
[1738637560716,0.91942145,101090.0,101080.0,0.00010689]
[1738637560914,1.0039685,101090.0,101080.0,0.00010689]
[1738637563057,0.91942145,101090.0,101080.0,0.00010689]
[1738637563266,0.92920064,101090.0,101080.0,0.00010689]
[1738637573698,0.92920064,101090.0,101080.0,8.9e-07]
[1738637575292,0.91920064,101090.0,101080.0,8.9e-07]
[1738637578745,0.90942145,101090.0,101080.0,8.9e-07]
[1738637579013,1.01191617,101090.0,101080.0,8.9e-07]
[1738637579414,1.09984983,101090.0,101080.0,8.9e-07]
[1738637581262,0.99735511,101090.0,101080.0,8.9e-07]
[1738637582061,1.00718869,101090.0,101080.0,8.9e-07]
[1738637583296,0.94791869,101090.0,101080.0,8.9e-07]
[1738637583517,0.84391869,101090.0,101080.0,8.9e-07]
[1738637584862,0.298426,101060.0,101050.0,0.0449068]
[1738637585028,0.59633556,101060.0,101050.0,0.0001068]
[1738637585870,0.51007331,101060.0,101050.0,0.0001068]
[1738637586484,0.59633556,101060.0,101050.0,0.0001068]
[1738637587787,0.51007331,101060.0,101050.0,0.0001068]
[1738637588871,0.59633556,101060.0,101050.0,0.0001068]
[1738637589853,0.51007331,101060.0,101050.0,0.0001068]
[1738637590340,0.52140348,101060.0,101050.0,0.0001068]
[1738637590972,0.60766573,101060.0,101050.0,0.0001068]
[1738637591387,0.74516573,101060.0,101050.0,0.0001068]
[1738637591587,0.75228573,101060.0,101050.0,0.0001068]
[1738637593756,0.75228573,101060.0,101050.0,8e-07]
[1738637595999,0.76228573,101060.0,101050.0,8e-07]
[1738637596621,0.75228573,101060.0,101050.0,8e-07]
[1738637597090,0.85478045,101060.0,101050.0,8e-07]
[1738637601082,1.86950045,101060.0,101050.0,8e-07]
[1738637601234,1.87950045,101060.0,101050.0,8e-07]
[1738637601683,1.9657627,101060.0,101050.0,8e-07]
[1738637602128,1.87950045,101060.0,101050.0,8e-07]
[1738637605124,1.9657627,101060.0,101050.0,8e-07]
[1738637605302,1.87950045,101060.0,101050.0,8e-07]
[1738637607065,0.400761,101050.0,101040.0,6e-07]
[1738637607262,0.85966528,101050.0,101040.0,6e-07]
[1738637607494,0.77340303,101050.0,101040.0,6e-07]
[1738637607788,0.95366528,101050.0,101040.0,6e-07]
[1738637607994,0.96366528,101050.0,101040.0,6e-07]
[1738637608134,0.99956528,101050.0,101040.0,6e-07]
[1738637608331,0.99956528,101050.0,101040.0,5.3e-07]
[1738637609103,0.17147,101030.0,101020.0,0.0001068]
[1738637609247,0.36011731,101030.0,101020.0,0.00015408]
[1738637612604,0.41943731,101030.0,101020.0,0.00015408]
[1738637613217,0.36011731,101030.0,101020.0,0.00015408]
[1738637614950,0.37187877,101030.0,101020.0,0.00015408]
[1738637616241,0.44707877,101030.0,101020.0,0.00015408]
[1738637618972,0.75304102,101030.0,101020.0,8e-08]
[1738637619166,0.85553574,101030.0,101020.0,8e-08]
[1738637620568,0.86265574,101030.0,101020.0,8e-08]
[1738637621390,0.76016102,101030.0,101020.0,8e-08]
[1738637621877,0.76998779,101030.0,101020.0,8e-08]
[1738637623342,0.82930779,101030.0,101020.0,8e-08]
[1738637624714,0.81930779,101030.0,101020.0,8e-08]
[1738637624917,0.82930779,101030.0,101020.0,8.8e-07]
[1738637625217,0.92202679,101030.0,101020.0,8.8e-07]
[1738637625417,0.5841095,101020.0,101010.0,6.8e-07]
[1738637625549,0.74479456,101020.0,101010.0,5.1e-07]
[1738637626205,0.33152,101010.0,101000.0,3.1e-07]
[1738637626406,0.74384118,101010.0,101000.0,3.1e-07]
[1738637627016,0.89384118,101010.0,101000.0,3.1e-07]
[1738637627416,0.90861305,101010.0,101000.0,3.1e-07]
[1738637627819,0.81830143,101010.0,101000.0,3.1e-07]
[1738637628163,0.73203918,101010.0,101000.0,3.1e-07]
[1738637628373,0.81830143,101010.0,101000.0,3.1e-07]
[1738637629247,0.81335633,101010.0,101000.0,3.1e-07]
[1738637629480,0.82442764,101010.0,101000.0,3.1e-07]
[1738637629673,0.92692236,101010.0,101000.0,3.1e-07]
[1738637629874,0.249014,101000.0,100990.0,1.1e-07]
[1738637630081,0.57282356,101000.0,100990.0,1.1e-07]
[1738637630877,0.58759567,101000.0,100990.0,1.1e-07]
[1738637633911,0.74759567,101000.0,100990.0,1.1e-07]
[1738637634094,0.83790729,101000.0,100990.0,1.1e-07]
[1738637634288,0.74759567,101000.0,100990.0,1.1e-07]
[1738637636013,0.74265033,101000.0,100990.0,1.1e-07]
[1738637636882,0.73265033,101000.0,100990.0,1.1e-07]
[1738637637096,0.74265033,101000.0,100990.0,1.1e-07]
[1738637637295,0.74985033,101000.0,100990.0,1.1e-07]
[1738637637497,0.85234505,101000.0,100990.0,1.1e-07]
[1738637640974,0.84251828,101000.0,100990.0,1.1e-07]
[1738637642054,0.85251828,101000.0,100990.0,1.1e-07]
[1738637643273,0.90183828,101000.0,100990.0,1.1e-07]
[1738637643873,0.240849,100990.0,100980.0,9.1e-07]
[1738637644114,0.240864,100980.0,100970.0,0.0001068]
[1738637644339,0.59237356,100980.0,100970.0,0.0001068]
[1738637645297,0.59237356,100980.0,100970.0,0.00058088]
[1738637645701,0.60710987,100980.0,100970.0,0.00058088]
[1738637646888,0.75710987,100980.0,100970.0,0.00058088]
[1738637647134,0.85960459,100980.0,100970.0,0.00058088]
[1738637647335,1.96966684,100980.0,100970.0,8.8e-07]
[1738637647667,1.95966684,100980.0,100970.0,8.8e-07]
[1738637648186,0.5041125,100950.0,100940.0,8e-07]
[1738637648396,0.84347228,100950.0,100940.0,8e-07]
[1738637648807,0.86820859,100950.0,100940.0,8e-07]
[1738637649509,0.85820859,100950.0,100940.0,8e-07]
[1738637649718,0.76571387,100950.0,100940.0,8e-07]
[1738637649928,0.61105162,100950.0,100940.0,8e-07]
[1738637650625,0.57282805,100950.0,100940.0,8e-07]
[1738637650889,0.56554805,100950.0,100940.0,8e-07]
[1738637651358,0.57653687,100950.0,100940.0,8e-07]
[1738637651563,0.67903159,100950.0,100940.0,8e-07]
[1738637651776,0.81081654,100950.0,100940.0,8e-07]
[1738637652221,0.82081654,100950.0,100940.0,8e-07]
[1738637652432,0.8798265,100950.0,100940.0,8e-07]
[1738637652828,0.321632,100920.0,100910.0,0.0093474]
[1738637653093,0.68758696,100920.0,100910.0,0.0093474]
[1738637653324,0.70490696,100920.0,100910.0,0.0093474]
[1738637654114,0.70490696,100920.0,100910.0,0.00939487]
[1738637655055,0.57312201,100920.0,100910.0,0.00939487]
[1738637655901,0.70490696,100920.0,100910.0,0.00939487]
[1738637656104,0.56312201,100920.0,100910.0,0.00939487]
[1738637656307,0.57312201,100920.0,100910.0,0.00939487]
[1738637656744,0.56312201,100920.0,100910.0,0.00939487]
[1738637656957,0.57312201,100920.0,100910.0,0.00939487]
[1738637657179,0.5842808,100920.0,100910.0,0.00939487]
[1738637657382,0.68677552,100920.0,100910.0,0.00939487]
[1738637657578,0.81856047,100920.0,100910.0,0.00939487]
[1738637657883,0.68677552,100920.0,100910.0,0.00939487]
[1738637658479,0.81856047,100920.0,100910.0,0.00939487]
[1738637659438,0.81856047,100920.0,100910.0,8.7e-07]
[1738637661142,0.82856047,100920.0,100910.0,8.7e-07]
[1738637661304,0.82856047,100920.0,100910.0,0.00010777]
[1738637665806,0.5942808,100920.0,100910.0,0.00010777]
[1738637666429,0.72606575,100920.0,100910.0,0.00010777]
[1738637666945,0.5842808,100920.0,100910.0,0.00010777]
[1738637667153,0.5942808,100920.0,100910.0,0.00010777]
[1738637667361,0.72606575,100920.0,100910.0,0.00010777]
[1738637667588,0.82856047,100920.0,100910.0,0.00010777]
[1738637668164,0.69677552,100920.0,100910.0,0.00010777]
[1738637668313,1.68996047,100920.0,100910.0,0.00010777]
[1738637668464,1.74928047,100920.0,100910.0,0.00010777]
[1738637669249,1.85328047,100920.0,100910.0,0.00010777]
[1738637669453,0.88788047,100920.0,100910.0,7.7e-07]
[1738637669749,0.97427051,100920.0,100910.0,7.7e-07]
[1738637671166,0.87177579,100920.0,100910.0,7.7e-07]
[1738637672346,0.321647,100910.0,100900.0,9e-07]
[1738637672551,0.55581701,100910.0,100900.0,4.839e-05]
[1738637674334,0.57055663,100910.0,100900.0,4.839e-05]